[Event "RUS-ch Men Rapid 2019"]
[Site "Sochi"]
[Date "2019.10.15"]
[Round "4.29"]
[White "Faizrakhmanov, Ramil"]
[Black "Dianov, Alexey"]
[Result "1-0"]
[ECO "A41"]
[WhiteElo "2434"]
[BlackElo "2158"]
[Annotator "NA RC"]
[PlyCount "85"]
[EventDate "2019.10.15"]
[EventType "swiss"]
[EventCountry "RUS"]
[SourceTitle "playchess.com"]
[Source "ChessBase"]
[SourceQuality "1"]
[TimeControl "900+10"]

1. d4 {[%emt 0:00:00]} d6 {[%emt 0:00:41]} 2. Nf3 Nf6 3. c4 {[%emt 0:00:00]} Nbd7 {[%emt 0:00:08]} 4. Nc3 {[%emt 0:00:00]} e5 {[%emt 0:00:02]} 5. g3 {[%emt 0:00:16]} Be7 {[%emt 0:00:02]} 6. Bg2 {[%emt 0:00:03]} O-O {[%emt 0:00:03]} 7. O-O {[%emt 0:00:02]} c6 {[%emt 0:00:01]} 8. b3 {[%emt 0:00:09]} Re8 {[%emt 0:00:15]} 9. Qc2 {[%emt 0:00:27]} Bf8 {[%emt 0:00:10]} 10. Rd1 {[%emt 0:00:03]} Qc7 {[%emt 0:00:41]} 11. Bb2 {[%emt 0:00:16]} a5 {[%emt 0:02:00]} 12. e3 {[%emt 0:00:44]} g6 {[%emt 0:00:20]} 13. d5 {[%emt 0:00:19]} Nc5 {[%emt 0:00:20]} 14. h3 {[%emt 0:01:55]} Bf5 {[%emt 0:00:42]} 15. Qe2 {[%emt 0:00:04]} Qb6 {[%emt 0:04:19]} 16. g4 {[%emt 0:00:46]} Bc8 {[%emt 0:00:32]} 17. Ba3 {[%emt 0:00:07]} Nfe4 {[%emt 0:02:02]} 18. Nxe4 {[%emt 0:01:05]} Nxe4 {[%emt 0:00:02]} 19. Qc2 {[%emt 0:00:06]} Nc5 {[%emt 0:00:05]} 20. Ng5 {[%emt 0:00:32]} f5 {[%emt 0:01:19]} 21. gxf5 {[%emt 0:01:43]} Bxf5 {[%emt 0:01:09]} 22. Bxc5 {[%emt 0:00:28]} dxc5 {[%emt 0:00:47]} 23. Be4 {[%emt 0:00:17]} cxd5 {[%emt 0:00:27]} 24. Bxf5 {[%emt 0:00:17]} gxf5 {[%emt 0:00:04]} 25. Qxf5 {[%emt 0:00:22]} Qg6 {[%emt 0:00:45]} 26. Qxg6+ {[%emt 0:00:02]} hxg6 {[%emt 0:00:01]} 27. Rxd5 {[%emt 0:00:03]} e4 {[%emt 0:00:24]} 28. Rad1 {[%emt 0:00:21]} Ra6 {[%emt 0:00:16]} 29. Rd8 {[%emt 0:00:20]} Re5 {[%emt 0:00:49]} 30. R1d5 {[%emt 0:00:02]} Rxd5 {[%emt 0:00:05]} 31. cxd5 {[%emt 0:00:01]} Rf6 {[%emt 0:00:07]} 32. Nxe4 Rf5 33. Nxc5 {[%emt 0:00:20]} Kf7 {[%emt 0:00:08]} 34. Nxb7 {[%emt 0:00:08]} Be7 {[%emt 0:00:00]} 35. Ra8 {[%emt 0:00:24]} Rxd5 {[%emt 0:00:02]} 36. Rxa5 {[%emt 0:00:02]} Rd7 {[%emt 0:00:09]} 37. Nc5 Rd5 38. b4 {[%emt 0:00:31]} Rd1+ {[%emt 0:00:01]} 39. Kg2 {[%emt 0:00:03]} Rb1 {[%emt 0:00:01]} 40. a3 {[%emt 0:00:05]} Rb2 {[%emt 0:00:02]} 41. Ne4 {[%emt 0:00:03]} Ra2 {[%emt 0:00:04]} 42. Ra6 {[%emt 0:00:08]} Bxb4 {[%emt 0:00:04]} 43. Rf6+ {[%emt 0:00:03]} 1-0

[Event "RUS-ch Men Rapid 2019"]
[Site "Sochi"]
[Date "2019.10.15"]
[Round "4.30"]
[White "Alexeev, Alexey"]
[Black "Nazaretyan, Tigran"]
[Result "1-0"]
[ECO "B20"]
[WhiteElo "2252"]
[BlackElo "2297"]
[Annotator "NA"]
[PlyCount "92"]
[EventDate "2019.10.15"]
[EventType "swiss"]
[EventCountry "RUS"]
[SourceTitle "playchess.com"]
[Source "ChessBase"]
[SourceQuality "1"]
[TimeControl "900+10"]

1. e4 {[%emt 0:00:00]} c5 {[%emt 0:00:00]} 2. a3 {[%emt 0:00:00]} g6 {[%emt 0:00:00]} 3. b4 {[%emt 0:00:00]} Bg7 {[%emt 0:00:00]} 4. Nc3 {[%emt 0:00:00]} d6 {[%emt 0:00:00]} 5. g3 {[%emt 0:00:02]} Nf6 {[%emt 0:00:15]} 6. Bg2 {[%emt 0:00:05]} Nc6 {[%emt 0:00:08]} 7. Rb1 {[%emt 0:00:02]} O-O {[%emt 0:01:27]} 8. Nge2 {[%emt 0:00:03]} Nd4 {[%emt 0:00:21]} 9. Nxd4 {[%emt 0:03:03]} cxd4 {[%emt 0:00:07]} 10. Ne2 {[%emt 0:00:01]} e5 {[%emt 0:00:45]} 11. c4 {[%emt 0:00:39]} d3 {[%emt 0:00:32]} 12. Nc3 {[%emt 0:00:09]} Bg4 {[%emt 0:00:33]} 13. Qb3 {[%emt 0:00:59]} Rc8 {[%emt 0:01:18]} 14. h3 {[%emt 0:00:49]} Bd7 {[%emt 0:00:35]} 15. Bf1 {[%emt 0:04:50]} b5 {[%emt 0:03:18]} 16. Bxd3 {[%emt 0:00:38]} bxc4 {[%emt 0:00:54]} 17. Bxc4 {[%emt 0:00:05]} Qb6 {[%emt 0:00:48]} 18. d3 {[%emt 0:00:43]} Rxc4 {[%emt 0:00:19]} 19. dxc4 {[%emt 0:00:44]} Rc8 {[%emt 0:00:00]} 20. Be3 {[%emt 0:00:25]} Qb7 {[%emt 0:00:03]} 21. f3 {[%emt 0:00:24]} Qa6 {[%emt 0:01:00]} 22. b5 {[%emt 0:00:25]} Qa5 {[%emt 0:00:01]} 23. Kf2 {[%emt 0:00:20]} Be6 {[%emt 0:00:21]} 24. Nd5 {[%emt 0:00:39]} Bxd5 {[%emt 0:01:34]} 25. cxd5 {[%emt 0:01:35]} Rc3 {[%emt 0:00:44]} 26. Qb2 {[%emt 0:00:11]} Nd7 {[%emt 0:01:14]} 27. Rhc1 {[%emt 0:00:36]} Rxe3 {[%emt 0:00:54]} 28. Rc8+ {[%emt 0:00:13]} Nf8 {[%emt 0:00:24]} 29. Kxe3 {[%emt 0:00:07]} Bh6+ {[%emt 0:00:01]} 30. Ke2 {[%emt 0:00:13]} Qb6 {[%emt 0:00:01]} 31. Qc3 {[%emt 0:00:08]} Kg7 {[%emt 0:00:02]} 32. a4 {[%emt 0:00:26]} a5 {[%emt 0:00:20]} 33. Rc6 {[%emt 0:00:28]} Qd8 {[%emt 0:00:01]} 34. b6 {[%emt 0:00:26]} Qg5 {[%emt 0:00:59]} 35. Kf2 {[%emt 0:00:37]} Nd7 {[%emt 0:01:01]} 36. b7 {[%emt 0:00:07]} Nb8 {[%emt 0:00:46]} 37. Rc8 {[%emt 0:00:10]} Qh5 {[%emt 0:00:12]} 38. Kg2 {[%emt 0:00:14]} Bf4 {[%emt 0:00:01]} 39. Rxb8 {[%emt 0:00:10]} Qg5 {[%emt 0:00:01]} 40. Rg8+ {[%emt 0:00:10]} Kxg8 {[%emt 0:00:01]} 41. Qc8+ {[%emt 0:00:01]} Kg7 {[%emt 0:00:01]} 42. Qg4 {[%emt 0:00:04]} Qf6 {[%emt 0:00:15]} 43. gxf4 {[%emt 0:00:10]} exf4 {[%emt 0:00:01]} 44. b8=Q {[%emt 0:00:06]} h5 {[%emt 0:00:01]} 45. Qgc8 {[%emt 0:00:16]} Qg5+ {[%emt 0:00:06]} 46. Kh1 {[%emt 0:00:04]} Qd8 1-0

[Event "RUS-ch Men Rapid 2019"]
[Site "Sochi"]
[Date "2019.10.15"]
[Round "4.32"]
[White "Kardashevskiy, Evgeny"]
[Black "Sysolyatin, Evgeny"]
[Result "0-1"]
[ECO "D37"]
[WhiteElo "2428"]
[BlackElo "2271"]
[Annotator "NA"]
[PlyCount "112"]
[EventDate "2019.10.15"]
[EventType "swiss"]
[EventCountry "RUS"]
[SourceTitle "playchess.com"]
[Source "ChessBase"]
[SourceQuality "1"]
[TimeControl "900+10"]

1. d4 Nf6 2. Nf3 d5 3. c4 e6 4. Nc3 Be7 5. g3 Nbd7 6. Bg2 dxc4 7. O-O a6 8. a4 Rb8 9. e4 b5 10. axb5 axb5 11. d5 e5 12. Qe2 O-O 13. Be3 Re8 14. Nh4 Nc5 15. Rad1 Bd6 16. h3 Bd7 17. Nf5 Ncxe4 18. Nh6+ gxh6 19. Nxe4 Nxe4 20. Bxe4 f5 21. Bb1 Qf6 22. Kh2 Re7 23. Qf3 Kh8 24. Qh5 f4 25. Bd2 Qg5 26. Qf3 Rf8 27. gxf4 e4 28. Qc3+ Qg7 29. Qxg7+ Rxg7 30. Bc3 Bxf4+ 31. Kh1 Bxh3 32. Rg1 Bg5 33. Bxe4 Bf6 34. Rxg7 Bxg7 35. Kh2 Bf5 36. Bg2 Bd3 37. Kg3 h5 38. Re1 h4+ 39. Kxh4 Bxc3 40. bxc3 Rxf2 41. Kg3 Re2 42. Rxe2 Bxe2 43. Kf2 Bd3 44. Ke3 Kg7 45. Kd4 Kf6 46. Kc5 Ke5 47. Kxb5 Be4 48. Bf1 Bxd5 49. Be2 c6+ 50. Kc5 Ke4 51. Bh5 Kf4 52. Be2 Bf3 53. Bxc4 h5 54. Be6 h4 55. c4 Kg3 56. Kd4 h3 0-1

[Event "RUS-ch Men Rapid 2019"]
[Site "Sochi"]
[Date "2019.10.15"]
[Round "5.2"]
[White "Golubov, Saveliy"]
[Black "Sakaev, Konstantin"]
[Result "1-0"]
[ECO "D02"]
[WhiteElo "2518"]
[BlackElo "2586"]
[Annotator "ChessBase"]
[PlyCount "77"]
[EventDate "2019.10.15"]
[EventType "swiss"]
[EventCountry "RUS"]
[SourceTitle "playchess.com"]
[Source "ChessBase"]
[SourceQuality "1"]
[TimeControl "900+10"]

1. d4 {[%emt 0:00:00]} d5 {[%emt 0:00:00]} 2. Nf3 {[%emt 0:00:01]} Nf6 {[%emt 0:00:10]} 3. c3 {[%emt 0:00:21]} e6 {[%emt 0:00:45]} 4. Bf4 {[%emt 0:00:03]} c5 {[%emt 0:00:22]} 5. e3 {[%emt 0:00:02]} Nc6 {[%emt 0:00:01]} 6. Nbd2 {[%emt 0:00:03]} cxd4 {[%emt 0:00:06]} 7. exd4 {[%emt 0:00:08]} Nh5 {[%emt 0:00:02]} 8. Be3 {[%emt 0:02:56]} Bd6 {[%emt 0:00:19]} 9. Ne5 {[%emt 0:00:28]} g6 {[%emt 0:00:15]} 10. f4 {[%emt 0:01:39]} f6 {[%emt 0:00:23]} 11. Nxc6 {[%emt 0:00:21]} bxc6 {[%emt 0:00:02]} 12. g3 {[%emt 0:01:16]} Qb6 {[%emt 0:03:21]} 13. b4 {[%emt 0:00:30]} O-O {[%emt 0:02:55]} 14. Be2 {[%emt 0:01:46]} Ng7 {[%emt 0:00:02]} 15. O-O {[%emt 0:00:53]} e5 {[%emt 0:00:54]} 16. fxe5 {[%emt 0:03:22]} fxe5 {[%emt 0:00:02]} 17. Rxf8+ {[%emt 0:00:02]} Bxf8 {[%emt 0:00:02]} 18. Nf3 {[%emt 0:00:02]} Nf5 {[%emt 0:00:19]} 19. Bf2 {[%emt 0:00:56]} e4 {[%emt 0:00:09]} 20. Ne5 {[%emt 0:00:02]} Bg7 {[%emt 0:02:24]} 21. a4 {[%emt 0:01:18]} Be6 {[%emt 0:01:40]} 22. b5 {[%emt 0:00:41]} e3 {[%emt 0:01:16]} 23. Be1 {[%emt 0:00:03]} Bxe5 {[%emt 0:02:00]} 24. dxe5 {[%emt 0:00:03]} c5 {[%emt 0:00:13]} 25. g4 {[%emt 0:00:29]} Nh6 {[%emt 0:00:42]} 26. a5 {[%emt 0:00:07]} Qd8 {[%emt 0:00:14]} 27. Bg3 {[%emt 0:00:18]} Qd7 {[%emt 0:00:28]} 28. h3 {[%emt 0:00:39]} Nf7 {[%emt 0:00:03]} 29. Bf4 {[%emt 0:00:29]} d4 {[%emt 0:00:01]} 30. cxd4 {[%emt 0:00:30]} cxd4 {[%emt 0:00:03]} 31. Bd3 {[%emt 0:00:20]} Rd8 {[%emt 0:00:30]} 32. b6 {[%emt 0:00:03]} Bd5 {[%emt 0:00:16]} 33. Qa4 {[%emt 0:00:27]} Bc6 {[%emt 0:00:06]} 34. Qc4 {[%emt 0:00:01]} Bd5 {[%emt 0:00:22]} 35. Qxd4 {[%emt 0:00:06]} Qe7 {[%emt 0:00:11]} 36. Qxe3 {[%emt 0:00:08]} Ba8 {[%emt 0:00:09]} 37. Be4 {[%emt 0:00:04]} axb6 {[%emt 0:00:11]} 38. axb6 {[%emt 0:00:03]} Bxe4 {[%emt 0:00:01]} 39. Qxe4 {[%emt 0:00:01]} 1-0

[Event "RUS-ch Men Rapid 2019"]
[Site "Sochi"]
[Date "2019.10.15"]
[Round "5.3"]
[White "Tsydypov, Zhamsaran"]
[Black "Drygalov, Andrey"]
[Result "1-0"]
[ECO "A20"]
[WhiteElo "2671"]
[BlackElo "2538"]
[Annotator "RC"]
[PlyCount "77"]
[EventDate "2019.10.15"]
[EventType "swiss"]
[EventCountry "RUS"]
[SourceTitle "playchess.com"]
[Source "ChessBase"]
[SourceQuality "1"]
[TimeControl "900+10"]

1. c4 {[%emt 0:00:01]} e5 {[%emt 0:00:00]} 2. g3 {[%emt 0:00:04]} Nf6 {[%emt 0:00:00]} 3. Bg2 {[%emt 0:00:01]} d5 {[%emt 0:00:00]} 4. cxd5 {[%emt 0:00:02]} Nxd5 {[%emt 0:00:00]} 5. Nc3 {[%emt 0:00:03]} Nb6 {[%emt 0:00:00]} 6. e3 {[%emt 0:00:29]} h5 {[%emt 0:01:21]} 7. Nge2 {[%emt 0:00:10]} h4 {[%emt 0:00:02]} 8. d4 {[%emt 0:00:02]} hxg3 {[%emt 0:01:01]} 9. hxg3 {[%emt 0:00:10]} Rxh1+ {[%emt 0:00:01]} 10. Bxh1 {[%emt 0:00:01]} Bd6 {[%emt 0:00:37]} 11. dxe5 {[%emt 0:02:19]} Bxe5 {[%emt 0:00:01]} 12. Qxd8+ {[%emt 0:00:01]} Kxd8 {[%emt 0:00:01]} 13. f4 {[%emt 0:00:33]} Bf6 {[%emt 0:00:14]} 14. e4 {[%emt 0:00:07]} c6 {[%emt 0:00:19]} 15. Be3 {[%emt 0:01:54]} Bg4 {[%emt 0:00:12]} 16. Bd4 {[%emt 0:02:53]} N8d7 {[%emt 0:01:06]} 17. Bxf6+ {[%emt 0:00:26]} Nxf6 {[%emt 0:00:22]} 18. e5 {[%emt 0:00:11]} Nfd7 {[%emt 0:00:00]} 19. b4 {[%emt 0:00:28]} Kc7 {[%emt 0:01:51]} 20. Kf2 {[%emt 0:00:24]} f6 {[%emt 0:00:16]} 21. exf6 {[%emt 0:00:24]} gxf6 {[%emt 0:00:12]} 22. b5 {[%emt 0:00:12]} Nc5 {[%emt 0:01:09]} 23. bxc6 {[%emt 0:00:11]} bxc6 {[%emt 0:00:01]} 24. Nd4 {[%emt 0:00:05]} Rd8 {[%emt 0:01:54]} 25. Nxc6 {[%emt 0:00:27]} Rd2+ {[%emt 0:00:01]} 26. Kg1 {[%emt 0:00:18]} Rd3 {[%emt 0:00:29]} 27. Nxa7 {[%emt 0:00:08]} Rxg3+ {[%emt 0:00:26]} 28. Kf2 {[%emt 0:00:06]} Rh3 {[%emt 0:00:19]} 29. Bg2 {[%emt 0:01:18]} Nd3+ {[%emt 0:00:08]} 30. Kg1 {[%emt 0:00:12]} Rh8 {[%emt 0:00:14]} 31. Nab5+ {[%emt 0:00:15]} Kd7 {[%emt 0:02:17]} 32. Rf1 {[%emt 0:00:27]} Nc4 {[%emt 0:00:30]} 33. Nd5 {[%emt 0:00:04]} Be2 {[%emt 0:02:34]} 34. Ra1 {[%emt 0:00:26]} Rh6 {[%emt 0:01:52]} 35. Nd4 {[%emt 0:00:12]} Bg4 {[%emt 0:00:01]} 36. a4 {[%emt 0:00:48]} Rg6 {[%emt 0:00:55]} 37. f5 {[%emt 0:00:08]} Rg7 {[%emt 0:00:26]} 38. Nxf6+ {[%emt 0:00:06]} Kd6 {[%emt 0:00:00]} 39. Ne8+ {[%emt 0:00:02] Kd5} 1-0

[Event "RUS-ch Men Rapid 2019"]
[Site "Sochi"]
[Date "2019.10.15"]
[Round "5.6"]
[White "Lysyj, Igor"]
[Black "Oganian, Miran"]
[Result "1-0"]
[ECO "A46"]
[WhiteElo "2588"]
[BlackElo "2436"]
[Annotator "ChessBase"]
[PlyCount "91"]
[EventDate "2019.10.15"]
[EventType "swiss"]
[EventCountry "RUS"]
[SourceTitle "playchess.com"]
[Source "ChessBase"]
[SourceQuality "1"]
[TimeControl "900+10"]

1. d4 {[%emt 0:00:00]} Nf6 {[%emt 0:00:00]} 2. Nf3 {[%emt 0:00:07]} d5 {[%emt 0:00:00]} 3. g3 {[%emt 0:00:02]} e6 {[%emt 0:00:04]} 4. Bg2 {[%emt 0:00:02]} b5 {[%emt 0:00:20]} 5. O-O {[%emt 0:00:05]} c5 {[%emt 0:00:18]} 6. a4 {[%emt 0:00:28]} b4 {[%emt 0:00:10]} 7. c4 {[%emt 0:01:00]} bxc3 {[%emt 0:00:07]} 8. Nxc3 {[%emt 0:00:09]} Nc6 {[%emt 0:00:11]} 9. Bg5 {[%emt 0:01:11]} h6 {[%emt 0:02:44]} 10. Bxf6 {[%emt 0:00:12]} gxf6 {[%emt 0:01:36]} 11. dxc5 {[%emt 0:00:24]} Bxc5 {[%emt 0:00:18]} 12. Rc1 {[%emt 0:00:11]} Qb6 {[%emt 0:00:25]} 13. Nxd5 {[%emt 0:01:44]} exd5 {[%emt 0:01:37]} 14. Qxd5 {[%emt 0:00:04]} Be7 {[%emt 0:01:31]} 15. Qxc6+ {[%emt 0:01:01]} Qxc6 {[%emt 0:00:04]} 16. Rxc6 {[%emt 0:00:01]} Rb8 {[%emt 0:00:19]} 17. Nd4 {[%emt 0:00:41]} Bd7 {[%emt 0:00:22]} 18. Ra6 {[%emt 0:00:11]} Bc5 {[%emt 0:00:19]} 19. Bc6 {[%emt 0:02:25]} Bxc6 {[%emt 0:01:54]} 20. Nxc6 {[%emt 0:00:09]} Rxb2 {[%emt 0:00:02]} 21. Rc1 {[%emt 0:00:32]} Ba3 {[%emt 0:00:26]} 22. Rc3 {[%emt 0:00:38]} Ra2 {[%emt 0:00:13]} 23. Nxa7 {[%emt 0:00:49]} O-O {[%emt 0:00:07]} 24. Nb5 {[%emt 0:00:23]} Bb4 {[%emt 0:00:03]} 25. Rc4 {[%emt 0:00:08]} Be1 {[%emt 0:00:14]} 26. Nd4 {[%emt 0:00:20]} Kg7 {[%emt 0:00:50]} 27. Nf5+ {[%emt 0:00:15]} Kg6 {[%emt 0:00:05]} 28. Ne7+ {[%emt 0:00:24]} Kh7 {[%emt 0:00:07]} 29. Re4 {[%emt 0:01:53]} Kg7 {[%emt 0:00:38]} 30. Rg4+ {[%emt 0:00:21]} Kh7 {[%emt 0:00:01]} 31. Re4 {[%emt 0:00:57]} Kg7 {[%emt 0:00:10]} 32. Nd5 {[%emt 0:00:45]} f5 {[%emt 0:00:08]} 33. Re5 {[%emt 0:00:02]} Rc8 {[%emt 0:01:22]} 34. Ne7 {[%emt 0:00:22]} Rd8 {[%emt 0:01:18]} 35. Nxf5+ {[%emt 0:00:03]} Kg8 {[%emt 0:00:13]} 36. Nxh6+ {[%emt 0:00:08]} Kf8 {[%emt 0:00:01]} 37. Nf5 {[%emt 0:00:12]} Bc3 {[%emt 0:00:15]} 38. Re4 {[%emt 0:00:11]} Re8 {[%emt 0:00:18]} 39. Rxe8+ {[%emt 0:00:25]} Kxe8 {[%emt 0:00:01]} 40. Kf1 {[%emt 0:00:06]} Ra1+ {[%emt 0:00:16]} 41. Kg2 {[%emt 0:00:01]} Ra2 {[%emt 0:00:01]} 42. Kf3 {[%emt 0:00:02]} Ra3 {[%emt 0:00:03]} 43. e3 {[%emt 0:00:13]} Ra2 {[%emt 0:00:02]} 44. Nd6+ {[%emt 0:00:05]} Ke7 {[%emt 0:00:05]} 45. Ne4 {[%emt 0:00:02]} Be1 {[%emt 0:00:01]} 46. g4 {[%emt 0:00:01]} 1-0

[Event "RUS-ch Men Rapid 2019"]
[Site "Sochi"]
[Date "2019.10.15"]
[Round "5.7"]
[White "Khismatullin, Denis"]
[Black "Yudin, Sergei"]
[Result "0-1"]
[ECO "A13"]
[WhiteElo "2550"]
[BlackElo "2577"]
[Annotator "ChessBase"]
[PlyCount "76"]
[EventDate "2019.10.15"]
[EventType "swiss"]
[EventCountry "RUS"]
[SourceTitle "playchess.com"]
[Source "ChessBase"]
[SourceQuality "1"]
[TimeControl "900+10"]

1. c4 {[%emt 0:00:03]} e6 {[%emt 0:00:00]} 2. Nf3 {[%emt 0:00:12]} d5 {[%emt 0:00:00]} 3. e3 {[%emt 0:00:01]} f5 {[%emt 0:00:43]} 4. b3 {[%emt 0:00:22]} Nf6 {[%emt 0:00:03]} 5. Bb2 {[%emt 0:00:01]} Bd6 {[%emt 0:00:04]} 6. Nc3 {[%emt 0:00:44]} c6 {[%emt 0:00:16]} 7. h3 {[%emt 0:00:41]} O-O {[%emt 0:00:10]} 8. g4 {[%emt 0:00:14]} Qe7 {[%emt 0:01:52]} 9. Rg1 {[%emt 0:01:26]} fxg4 {[%emt 0:02:07]} 10. hxg4 {[%emt 0:00:07]} Ne4 {[%emt 0:00:12]} 11. Qe2 {[%emt 0:06:18]} Na6 {[%emt 0:01:22]} 12. Bg2 {[%emt 0:01:10]} Nxc3 {[%emt 0:02:00]} 13. dxc3 {[%emt 0:00:54]} e5 {[%emt 0:00:40]} 14. Nd2 {[%emt 0:00:26]} e4 {[%emt 0:00:23]} 15. O-O-O {[%emt 0:00:33]} Nc5 {[%emt 0:00:33]} 16. f3 {[%emt 0:00:02]} Bxg4 {[%emt 0:00:58]} 17. cxd5 {[%emt 0:00:48]} cxd5 {[%emt 0:00:20]} 18. Bh1 {[%emt 0:01:34]} Nd3+ {[%emt 0:01:21]} 19. Kb1 {[%emt 0:00:04]} Nxb2 {[%emt 0:00:17]} 20. Kxb2 {[%emt 0:00:05]} Ba3+ {[%emt 0:02:32]} 21. Ka1 {[%emt 0:00:05]} exf3 {[%emt 0:01:05]} 22. Bxf3 {[%emt 0:01:19]} Qf6 {[%emt 0:01:12]} 23. Bxd5+ {[%emt 0:00:41]} Kh8 {[%emt 0:00:01]} 24. Qd3 {[%emt 0:00:07]} Bxd1 {[%emt 0:00:08]} 25. Rxd1 {[%emt 0:00:03]} Rad8 {[%emt 0:00:03]} 26. e4 {[%emt 0:00:43]} b5 {[%emt 0:00:37]} 27. Nb1 {[%emt 0:00:19]} Bb4 {[%emt 0:00:08]} 28. Kb2 {[%emt 0:00:04]} a6 {[%emt 0:00:03]} 29. Rd2 {[%emt 0:00:14]} Bd6 {[%emt 0:00:05]} 30. a3 {[%emt 0:00:23]} Be5 {[%emt 0:00:04]} 31. b4 {[%emt 0:00:02]} Qf3 {[%emt 0:00:21]} 32. Qc2 {[%emt 0:00:06]} g5 {[%emt 0:00:12]} 33. Rd3 {[%emt 0:00:10]} Qf2 {[%emt 0:00:04]} 34. Rd2 {[%emt 0:00:02]} Qf4 {[%emt 0:00:08]} 35. Rg2 {[%emt 0:00:20]} g4 {[%emt 0:00:05]} 36. Be6 {[%emt 0:00:05]} g3 {[%emt 0:00:22]} 37. Bf5 {[%emt 0:00:07]} Qf1 {[%emt 0:00:04]} 38. Bh3 {[%emt 0:00:20]} Qxg2 {[%emt 0:00:26]} 0-1

[Event "RUS-ch Men Rapid 2019"]
[Site "Sochi"]
[Date "2019.10.15"]
[Round "5.9"]
[White "Pridorozhni, Aleksei"]
[Black "Ulybin, Mikhail"]
[Result "1-0"]
[ECO "C13"]
[WhiteElo "2554"]
[BlackElo "2455"]
[Annotator "ChessBase"]
[PlyCount "61"]
[EventDate "2019.10.15"]
[EventType "swiss"]
[EventCountry "RUS"]
[SourceTitle "playchess.com"]
[Source "ChessBase"]
[SourceQuality "1"]
[TimeControl "900+10"]

1. e4 {[%emt 0:00:00]} e6 {[%emt 0:00:00]} 2. d4 {[%emt 0:00:00]} d5 {[%emt 0:00:00]} 3. Nc3 {[%emt 0:00:02]} Nf6 {[%emt 0:00:04]} 4. Bg5 {[%emt 0:00:07]} Be7 {[%emt 0:00:11]} 5. e5 {[%emt 0:00:04]} Nfd7 {[%emt 0:00:04]} 6. h4 {[%emt 0:00:03]} h6 {[%emt 0:00:17]} 7. Bxe7 {[%emt 0:00:13]} Qxe7 {[%emt 0:00:05]} 8. Qd2 {[%emt 0:00:05]} a6 {[%emt 0:00:32]} 9. f4 {[%emt 0:00:02]} c5 {[%emt 0:00:08]} 10. Nf3 {[%emt 0:00:03]} Nc6 {[%emt 0:00:05]} 11. dxc5 {[%emt 0:01:03]} Nxc5 {[%emt 0:00:18]} 12. Bd3 {[%emt 0:00:02]} Bd7 {[%emt 0:03:30]} 13. Ne2 {[%emt 0:00:03]} O-O-O {[%emt 0:00:55]} 14. O-O-O {[%emt 0:00:14]} Kb8 {[%emt 0:00:19]} 15. Ned4 {[%emt 0:00:09]} Rc8 {[%emt 0:00:32]} 16. Kb1 {[%emt 0:00:06]} Rc7 {[%emt 0:01:19]} 17. h5 {[%emt 0:01:00]} Rhc8 {[%emt 0:00:16]} 18. g4 {[%emt 0:00:28]} Ne4 {[%emt 0:03:45]} 19. Qe1 {[%emt 0:00:17]} Nb4 {[%emt 0:00:27]} 20. a3 {[%emt 0:00:49]} Nxd3 {[%emt 0:00:24]} 21. cxd3 {[%emt 0:00:12]} Nc3+ {[%emt 0:01:58]} 22. bxc3 {[%emt 0:00:02]} Rxc3 {[%emt 0:00:08]} 23. Qd2 {[%emt 0:01:06]} Qxa3 {[%emt 0:01:12]} 24. Qb2 {[%emt 0:00:07]} Qa5 {[%emt 0:01:47]} 25. Rc1 {[%emt 0:00:19]} Ba4 {[%emt 0:00:16]} 26. Rxc3 {[%emt 0:00:52]} Rxc3 {[%emt 0:00:03]} 27. Rc1 {[%emt 0:00:04]} Rxd3 {[%emt 0:00:12]} 28. f5 {[%emt 0:00:04]} Ka7 {[%emt 0:00:36]} 29. f6 {[%emt 0:00:09]} g5 {[%emt 0:00:12]} 30. hxg6 {[%emt 0:00:07]} fxg6 {[%emt 0:00:06]} 31. f7 {[%emt 0:00:07]} 1-0

[Event "RUS-ch Men Rapid 2019"]
[Site "Sochi"]
[Date "2019.10.15"]
[Round "5.10"]
[White "Potapov, Pavel"]
[Black "Yuffa, Daniil"]
[Result "1/2-1/2"]
[ECO "B12"]
[WhiteElo "2489"]
[BlackElo "2552"]
[Annotator "ChessBase"]
[PlyCount "74"]
[EventDate "2019.10.15"]
[EventType "swiss"]
[EventCountry "RUS"]
[SourceTitle "playchess.com"]
[Source "ChessBase"]
[SourceQuality "1"]
[TimeControl "900+10"]

1. e4 {[%emt 0:00:00]} c6 {[%emt 0:00:00]} 2. d4 {[%emt 0:00:00]} d5 {[%emt 0:00:00]} 3. e5 {[%emt 0:00:00]} Bf5 {[%emt 0:00:00]} 4. h4 {[%emt 0:00:00]} a6 {[%emt 0:00:05]} 5. a3 {[%emt 0:00:26]} Qc7 {[%emt 0:00:11]} 6. b4 {[%emt 0:01:25]} a5 {[%emt 0:00:32]} 7. c3 {[%emt 0:00:35]} axb4 {[%emt 0:00:51]} 8. cxb4 {[%emt 0:00:02]} e6 {[%emt 0:00:02]} 9. Bb2 {[%emt 0:00:10]} h5 {[%emt 0:00:51]} 10. Bd3 {[%emt 0:00:34]} Ne7 {[%emt 0:01:09]} 11. Ne2 {[%emt 0:00:11]} Nd7 {[%emt 0:00:04]} 12. Ng3 {[%emt 0:01:37]} Bxd3 {[%emt 0:00:05]} 13. Qxd3 {[%emt 0:00:02]} b5 {[%emt 0:00:26]} 14. Nd2 {[%emt 0:00:13]} Nb6 {[%emt 0:00:04]} 15. Rd1 {[%emt 0:00:53]} Nc4 {[%emt 0:00:07]} 16. Nxc4 {[%emt 0:00:56]} dxc4 {[%emt 0:00:19]} 17. Qf3 {[%emt 0:00:10]} g6 {[%emt 0:01:34]} 18. Ne4 {[%emt 0:00:15]} Nd5 {[%emt 0:00:19]} 19. Nf6+ {[%emt 0:01:30]} Nxf6 {[%emt 0:01:01]} 20. Qxf6 {[%emt 0:00:03]} Rg8 {[%emt 0:00:01]} 21. Rh3 {[%emt 0:00:25]} Be7 {[%emt 0:03:03]} 22. Qf3 {[%emt 0:00:40]} Qd7 {[%emt 0:00:34]} 23. Bc1 {[%emt 0:00:39]} Ra6 {[%emt 0:01:01]} 24. Bg5 {[%emt 0:00:35]} Bxg5 {[%emt 0:00:53]} 25. hxg5 {[%emt 0:00:01]} Qe7 {[%emt 0:00:01]} 26. Qf6 {[%emt 0:02:15]} Kd7 {[%emt 0:01:13]} 27. Rc1 {[%emt 0:00:28]} Rga8 {[%emt 0:01:04]} 28. Rcc3 {[%emt 0:00:09]} R6a7 {[%emt 0:00:16]} 29. Rcf3 {[%emt 0:01:06]} Ke8 {[%emt 0:00:37]} 30. Ke2 {[%emt 0:00:56]} Rd8 {[%emt 0:01:19]} 31. Rh4 {[%emt 0:00:36]} Rda8 {[%emt 0:00:28]} 32. Rhh3 {[%emt 0:00:09]} Rd8 {[%emt 0:00:29]} 33. Rh4 {[%emt 0:00:02]} Rd5 {[%emt 0:00:24]} 34. Qh8+ {[%emt 0:00:42]} Qf8 {[%emt 0:00:07]} 35. Qf6 {[%emt 0:00:03]} Qe7 {[%emt 0:00:49]} 36. Qh8+ {[%emt 0:00:02]} Qf8 {[%emt 0:00:10]} 37. Qf6 {[%emt 0:00:02]} Qe7 {[%emt 0:00:36]} 1/2-1/2